bitfinex/quotes_ETHUSD_20240731
["timestamp","ask_amount","ask_price","bid_price","bid_amount"]
[1722449137237,0.6628921,3318.0,3317.5,0.06802415]
[1722449137618,0.6628921,3318.0,3316.2,3.01541]
[1722449137619,3.01353,3318.4,3317.3,3.01449]
[1722449137823,3.0,3318.3,3317.4,0.12836055]
[1722449138038,3.0,3318.3,3317.6,3.01419]
[1722449138212,3.01292,3319.1,3317.7,3.01406]
[1722449138213,3.01341,3318.5,3317.7,3.01406]
[1722449138416,3.01341,3318.5,3317.8,3.14103282]
[1722449138651,3.314851,3318.4,3317.8,3.08073876]
[1722449138935,3.01362,3318.3,3317.8,0.06673876]
[1722449139139,3.01377,3318.1,3317.8,0.06673876]
[1722449139313,3.0137,3318.2,3317.4,3.01434]
[1722449139513,3.314861,3318.4,3317.9,0.06664086]
[1722449139514,3.0136,3318.3,3317.9,0.06664086]
[1722449139760,3.01402,3317.9,3316.9,3.0]
[1722449139941,3.01402,3317.9,3317.1,3.01464]
[1722449140262,3.01387,3318.0,3317.2,0.06027853]
[1722449140559,3.01387,3318.0,3317.1,3.01465]
[1722449140738,0.3314941,3318.2,3317.1,3.01462]
[1722449140739,3.01377,3318.1,3317.1,3.01462]
[1722449141058,3.01377,3318.1,3317.4,3.0144]
[1722449141219,3.01344,3318.5,3317.5,0.06028257]
[1722449141557,3.01344,3318.5,3316.6,0.3022]
[1722449141558,3.01384,3318.1,3317.4,3.0144]
[1722449141707,3.01368,3318.2,3317.5,3.07458544]
[1722449141908,3.916399,3318.2,3317.5,3.07458544]
[1722449142102,3.916399,3318.2,3317.3,3.01445]
[1722449142103,3.01377,3318.1,3317.3,3.01445]
[1722449142330,3.01377,3318.1,3317.1,3.01459]
[1722449142539,0.902719,3318.2,3317.5,3.01425]
[1722449142749,3.916459,3318.2,3317.5,3.01425]
[1722449142955,0.3916459,3318.1,3317.0,3.01477]
[1722449143100,0.3916459,3318.1,3316.7,3.01496]
[1722449143101,3.01415,3317.7,3316.9,3.01486]
[1722449143306,3.01415,3317.7,3317.0,3.01476]
[1722449143738,3.01449,3317.4,3316.6,3.01507]
[1722449143953,3.01449,3317.4,3316.4,38.0153]
[1722449143954,3.014,3317.9,3316.4,35.0]
[1722449144116,6.01356,3318.4,3316.2,3.01547]
[1722449144117,3.01486,3316.9,3316.2,3.01547]
[1722449144453,3.01486,3316.9,3315.7,3.604]
[1722449144454,3.0148,3317.0,3316.3,3.0154]
[1722449144651,3.0148,3317.0,3315.7,6.6199]
[1722449144652,0.602948,3317.0,3316.2,3.01541]
[1722449144825,3.01459,3317.2,3316.4,3.01523]
[1722449145020,3.01459,3317.2,3316.5,3.01522]
[1722449145219,3.01444,3317.4,3316.5,3.01522]
[1722449145764,3.01444,3317.4,3316.1,35.0]
[1722449145765,3.01468,3317.1,3316.3,3.01534]
[1722449145909,3.01477,3317.0,3316.3,3.01534]
[1722449146110,3.01478,3317.0,3316.2,3.01544]
[1722449146311,3.617718,3317.0,3316.2,3.01544]
[1722449146505,3.617718,3317.0,3316.0,3.01567]
[1722449146506,3.01505,3316.7,3316.0,3.01567]
[1722449146721,3.617738,3317.0,3315.7,3.9062]
[1722449146722,3.01496,3316.8,3315.7,3.9062]
[1722449146925,3.01496,3316.8,3316.1,3.01552]
[1722449147255,3.617728,3317.0,3316.5,3.01521]
[1722449147256,0.602938,3317.0,3316.5,3.01521]
[1722449147462,3.01462,3317.2,3316.2,0.06365487]
[1722449147463,3.01408,3317.8,3316.6,0.06029847]
[1722449147680,3.01408,3317.8,3316.9,3.0148]
[1722449147878,3.01429,3317.6,3317.0,0.06028533]
[1722449148161,3.1009684,3318.3,3317.0,0.12360512]
[1722449148378,3.01438,3317.5,3317.0,0.06331979]
[1722449148518,3.01438,3317.5,3316.7,3.01498]
[1722449148519,3.315818,3317.5,3316.7,3.015]
[1722449149027,3.01469,3317.1,3316.8,0.06333242]
[1722449149465,0.301438,3317.5,3316.8,0.06333242]
[1722449149667,3.0143,3317.6,3316.9,3.07813644]
[1722449149815,3.0143,3317.6,3317.0,0.06028847]
[1722449150015,3.0143,3317.6,3317.1,0.06319448]
[1722449150268,0.0873384,3318.3,3317.2,0.0602884]
[1722449150269,3.01405,3317.8,3317.2,0.0602884]
[1722449150571,3.01458,3317.3,3317.1,0.06319448]
[1722449150861,3.01458,3317.3,3315.9,3.0]
[1722449150862,6.330538,3317.3,3317.2,0.06083886]
[1722449151215,6.330538,3317.3,3315.8,35.0]
[1722449151216,3.01523,3316.5,3315.8,35.0]
[1722449151414,3.01546,3316.3,3315.9,0.05939115]
[1722449151666,3.01552,3316.2,3315.9,0.05939115]
[1722449152162,3.01463,3317.2,3315.9,0.05939115]
[1722449152372,3.01556,3316.2,3315.9,0.05939115]
[1722449152531,3.01556,3316.2,3315.5,3.01611]
[1722449152532,6.03114,3316.2,3315.5,3.01611]
[1722449152873,3.01576,3316.0,3315.5,35.0]
[1722449153066,3.01478,3317.0,3315.5,35.0]
[1722449153067,3.01557,3316.2,3315.6,0.05953382]
[1722449153370,0.6316088,3317.1,3316.1,3.01558]
[1722449153371,3.6463188,3317.1,3316.1,3.01558]
[1722449153577,3.301458,3317.3,3316.4,3.01531]
[1722449153578,0.301458,3317.3,3316.4,3.01531]
[1722449153717,3.01473,3317.1,3316.5,0.06029517]
[1722449153920,3.01473,3317.1,3316.5,0.11941496]
[1722449154165,3.0148,3317.0,3316.5,0.05911979]
[1722449154347,3.01487,3316.9,3316.5,0.05911979]
[1722449154649,3.01487,3316.9,3316.2,3.01544]
[1722449154650,3.01495,3316.8,3316.6,0.0590738]
[1722449154874,0.602986,3316.7,3316.0,3.01561]
[1722449155052,3.0,3317.8,3316.7,0.05902781]
[1722449155053,3.01498,3316.8,3316.7,0.05902781]
[1722449155378,3.01477,3317.0,3316.2,3.01543]
[1722449155553,3.01462,3317.2,3316.7,0.05902781]
[1722449155720,3.01444,3317.4,3316.1,3.01552]
[1722449155923,6.02972,3316.9,3316.8,0.05898183]
[1722449156153,3.01507,3316.7,3316.0,6.01568]
[1722449156357,3.01507,3316.7,3316.1,3.01558]
[1722449156538,3.315974,3317.3,3316.1,3.01558]
[1722449156539,3.315974,3317.3,3316.1,0.05930377]
[1722449156740,3.0,3317.2,3316.1,0.05930377]
[1722449156965,3.01528,3316.5,3315.8,3.01585]
[1722449157160,3.0154,3316.3,3316.2,0.05925777]
[1722449157344,0.3301444,3317.1,3315.5,35.0]
[1722449157345,3.01565,3316.1,3315.5,35.0]
[1722449157545,3.01563,3316.1,3315.5,35.0]
[1722449157862,0.3301444,3317.1,3314.6,3.31911]
[1722449157863,3.01568,3316.0,3314.6,3.31911]
[1722449158040,3.01596,3315.7,3315.1,3.01643]
[1722449158225,3.01535,3316.4,3315.1,35.0]
[1722449158226,3.01593,3315.8,3315.1,35.0]
[1722449158423,3.01535,3316.4,3315.1,38.01643]
[1722449158654,3.0,3316.7,3315.1,38.01643]
[1722449158655,3.0,3316.7,3315.1,35.0]
[1722449158870,3.01482,3317.0,3315.1,35.0]
[1722449158871,3.01631,3315.3,3315.1,35.0]
[1722449159094,3.01575,3316.0,3314.3,3.01716]
[1722449159095,3.01655,3315.1,3314.3,3.01716]
[1722449159311,3.01611,3315.6,3314.7,3.01678]
[1722449159595,3.01591,3315.8,3315.0,3.01652]
[1722449159779,3.01613,3315.5,3314.9,3.01666]
[1722449159977,3.0,3315.7,3314.8,38.01676]
[1722449159978,3.01609,3315.6,3314.8,38.01676]
[1722449160197,3.01609,3315.6,3314.8,35.0]
[1722449160500,3.25529,3316.5,3315.5,3.01609]
[1722449160501,3.01555,3316.2,3315.5,3.01609]
[1722449160703,3.01571,3316.0,3315.4,0.06031657]
[1722449160852,3.24,3316.5,3314.8,41.00193829]
[1722449160853,3.01578,3315.9,3314.8,41.00193829]
[1722449161056,0.24,3316.5,3314.9,0.55]
[1722449161057,3.01538,3316.4,3314.9,0.55]
[1722449161250,0.24,3316.5,3315.8,3.0158]
[1722449161251,3.25523,3316.5,3315.8,3.0158]
[1722449161457,0.24,3316.5,3315.9,0.0603117]
[1722449161705,3.25524,3316.5,3315.9,3.0760817]
[1722449161886,3.01537,3316.4,3315.5,3.01609]
[1722449162083,3.01537,3316.4,3315.7,3.01588]
[1722449162394,3.01537,3316.4,3315.6,35.55]
[1722449162395,3.01568,3316.0,3315.6,35.0]
[1722449162763,3.01568,3316.0,3315.3,7.29]
[1722449162764,3.01573,3316.0,3315.3,7.29]
[1722449162932,0.24,3315.4,3315.0,3.0]
[1722449163080,0.24,3315.5,3315.2,35.0]
[1722449163428,0.24,3315.5,3315.4,3.01622]
[1722449163569,0.24,3315.5,3315.4,3.05730401]
[1722449163771,0.24,3315.5,3315.4,6.07352401]
[1722449163999,0.24,3315.5,3315.4,0.04108401]
[1722449164197,3.25613,3315.5,3315.4,0.04108401]
[1722449164395,0.24,3315.5,3315.4,0.04108401]
[1722449164596,6.27226,3315.5,3315.4,0.04108401]
[1722449164800,6.27226,3315.5,3314.8,3.0]
[1722449164801,3.25613,3315.5,3314.8,3.0]
[1722449165022,3.25613,3315.5,3314.7,7.29]
[1722449165023,6.03318,3315.0,3314.9,0.04004712]
[1722449165208,3.581743,3315.5,3313.6,0.3022]
[1722449165209,3.01699,3314.6,3313.6,0.3022]
[1722449165385,3.01679,3314.8,3314.1,3.01735]
[1722449165586,3.01679,3314.8,3313.1,3.01827]
[1722449165587,3.01698,3314.6,3314.2,35.0391339]
[1722449165828,0.565613,3315.5,3314.2,35.0391339]
[1722449166029,3.01638,3315.3,3314.7,3.01681]
[1722449166185,0.24,3315.5,3314.8,0.09919096]
[1722449166388,3.01664,3315.0,3314.8,0.03885762]
[1722449166594,0.24,3315.5,3313.9,3.01756]
[1722449166595,3.01647,3315.2,3313.9,3.01756]
[1722449166786,3.01647,3315.2,3313.2,3.604]
[1722449166787,0.24,3315.5,3314.0,0.03922601]
[1722449166992,3.01717,3314.4,3313.7,3.01777]
[1722449167232,3.01662,3315.0,3314.0,3.01743]
[1722449167437,3.01662,3315.0,3313.7,35.0]
[1722449167438,3.01671,3314.9,3314.1,3.11692169]
[1722449167634,3.01691,3314.7,3314.1,0.03917995]
[1722449167933,0.24,3315.0,3314.7,3.01681]
[1722449168134,0.24,3315.3,3314.9,3.01667]
[1722449168336,0.24,3315.3,3314.7,3.01681]
[1722449168337,0.24,3315.3,3314.8,0.03885762]
[1722449168659,0.24,3315.6,3315.2,3.01636]
[1722449168931,0.24,3315.6,3315.3,38.11521391]
[1722449169136,0.24,3315.6,3315.4,3.01622]
[1722449169297,0.24,3316.2,3315.3,35.03862746]
[1722449169498,3.01562,3316.1,3315.5,0.03853542]
[1722449169700,3.01613,3315.5,3315.4,0.03858144]
[1722449169925,3.01613,3315.5,3315.3,35.0]
[1722449170149,3.01613,3315.5,3314.5,3.01699]
[1722449170150,0.24,3315.5,3314.5,3.01699]
[1722449170311,3.01652,3315.1,3314.1,7.29]
[1722449170499,3.01667,3315.0,3314.2,6.03451]
[1722449170700,0.79,3315.9,3315.1,3.01649]
[1722449170701,0.24,3315.9,3315.1,3.01649]
[1722449170943,0.24,3315.9,3314.9,7.29]
[1722449171247,3.01589,3315.8,3314.5,3.01702]
[1722449171538,3.01656,3315.1,3314.3,38.01717]
[1722449171757,3.01595,3315.7,3314.3,38.01717]
[1722449171758,3.01595,3315.7,3314.3,35.0]
[1722449171903,3.0166,3315.0,3314.3,35.0]
[1722449172211,3.317675,3315.6,3314.3,35.0]
[1722449172212,0.301595,3315.6,3314.4,3.01711]
[1722449172414,0.24,3315.9,3314.4,3.01713]
[1722449172611,3.01622,3315.5,3314.4,3.01713]
[1722449172955,0.24,3315.9,3314.3,35.0]
[1722449173106,3.01628,3315.4,3314.7,3.01685]
[1722449173301,3.01628,3315.4,3314.4,3.0]
[1722449173530,3.01646,3315.2,3314.4,3.0]
[1722449174050,3.317888,3315.4,3314.7,3.01683]
[1722449174254,3.25578,3315.9,3314.5,3.07728397]
[1722449174255,3.01621,3315.5,3314.6,3.01693]
[1722449174425,3.0164,3315.3,3314.5,3.01703]
[1722449174919,3.0164,3315.3,3314.5,3.01696]
[1722449174920,6.03279,3315.3,3314.5,3.01696]
[1722449175109,3.01639,3315.3,3314.5,3.01696]
[1722449175516,3.01646,3315.2,3314.5,3.01696]
[1722449176274,3.01587,3315.8,3314.3,35.0]
[1722449176275,3.01608,3315.6,3314.3,35.0]
[1722449176575,3.016,3315.7,3314.6,0.06033401]
[1722449176712,0.24,3315.9,3315.2,3.01639]
[1722449177068,3.01564,3316.1,3315.4,3.01614]
[1722449177355,0.24,3316.4,3315.4,3.01614]
[1722449177356,3.01556,3316.2,3315.4,3.01614]
[1722449177560,0.24,3316.4,3315.4,3.01614]
[1722449177561,0.24,3316.4,3315.6,3.016]
[1722449177797,0.24,3316.4,3315.6,0.06031363]
[1722449177912,0.24,3316.4,3316.0,3.01559]
[1722449178115,7.47,3316.5,3316.0,3.01559]
[1722449178116,0.24,3316.5,3316.2,3.01541]
[1722449178526,0.24,3316.5,3316.3,3.05400358]
[1722449179167,0.24,3316.5,3316.4,3.01531]
[1722449179463,0.24,3316.5,3316.4,3.05388758]
[1722449179658,0.24,3317.0,3316.4,0.03857758]
[1722449179863,0.24,3317.0,3316.6,3.01507]
[1722449180461,3.25447,3317.4,3316.7,3.05346961]
[1722449180628,0.24,3316.8,3316.7,3.05347961]
[1722449180830,0.24,3316.8,3316.7,0.03843961]
[1722449181038,0.24,3316.8,3316.7,6.06851961]
[1722449181244,0.24,3317.9,3316.7,0.03843961]
[1722449181416,0.63521901,3317.8,3316.7,0.03843961]
[1722449181763,3.01464,3317.2,3316.7,0.03843961]
[1722449181927,3.01429,3317.6,3316.9,3.01478]
[1722449182132,0.24,3317.6,3316.6,3.01505]
[1722449182367,0.24,3317.6,3317.0,3.05302167]
[1722449182569,0.24,3317.7,3317.2,3.01458]
[1722449182871,0.24,3317.7,3317.3,0.03816375]
[1722449183065,3.25413,3317.7,3317.3,0.03816375]
[1722449183274,0.24,3317.7,3317.2,3.01457]
[1722449183477,0.24,3317.7,3317.4,0.03811778]
[1722449183681,0.24,3317.7,3317.2,3.01457]
[1722449183878,0.24,3317.7,3317.5,0.03807182]
[1722449184029,0.24,3317.7,3317.2,3.01451]
[1722449184233,0.24,3317.7,3317.6,0.03802586]
[1722449184462,3.25404,3317.8,3317.2,3.01451]
[1722449184767,3.01413,3317.7,3317.6,0.03802586]
[1722449184974,3.01439,3317.5,3316.6,3.01513]
[1722449185276,0.24,3317.0,3316.7,0.03843961]
[1722449185777,0.24,3317.0,3316.9,3.01486]
[1722449186155,0.24,3317.0,3316.9,3.05320765]
[1722449186357,0.24,3317.0,3316.9,6.06806765]
[1722449186650,0.24,3317.8,3316.9,0.71147206]
[1722449186888,0.24,3317.1,3317.0,6.02954]
[1722449187033,3.09832007,3318.0,3317.2,6.02918]
[1722449187034,0.24,3317.3,3317.2,6.02918]
[1722449187238,0.24,3317.9,3317.8,6.02808]
[1722449187549,3.33832007,3318.0,3317.9,6.0279]
[1722449187964,3.33832007,3318.0,3317.9,6.06528819]
[1722449188273,3.33832007,3318.0,3317.9,9.1107689]
[1722449188481,3.33832007,3318.0,3317.9,12.1107689]
[1722449189383,3.33832007,3318.0,3317.9,15.6747189]
[1722449190000,3.33832007,3318.0,3317.9,18.6886689]
[1722449190752,3.33832007,3318.0,3317.9,12.60049648]
[1722449190978,3.33832007,3318.0,3317.9,9.61528819]
[1722449191184,3.33832007,3318.0,3317.9,44.61528819]
[1722449191387,0.24,3318.0,3317.9,44.61528819]
[1722449191567,0.24,3318.0,3317.9,38.03738819]
[1722449191784,0.24,3318.0,3317.9,41.05133819]
[1722449192111,0.24,3318.2,3317.9,3.03738819]
[1722449192252,0.24,3318.2,3317.9,0.03738819]
[1722449192253,3.25374,3318.2,3317.9,0.03738819]
[1722449192602,3.01386,3318.0,3317.1,38.01466]
[1722449192817,0.57410784,3318.2,3316.9,3.01482]
[1722449192990,0.24,3318.2,3317.7,3.01412]
[1722449193175,0.24,3318.2,3318.1,3.01377]
[1722449193372,0.3273384,3318.3,3318.1,3.01377]
[1722449193573,0.3273384,3318.3,3318.2,3.01368]
[1722449193806,0.3273384,3318.3,3318.2,3.07394992]
[1722449194005,0.3273384,3318.3,3318.2,0.09571497]
[1722449194305,0.3273384,3318.3,3318.2,0.03544505]
[1722449195060,0.3273384,3318.3,3317.9,3.0]
[1722449195297,3.3409284,3318.3,3318.2,0.03543686]
[1722449195502,3.3409284,3318.3,3317.2,35.0]
[1722449195503,3.01369,3318.2,3317.3,3.01444]
[1722449195796,0.66143124,3318.3,3317.5,3.01425]
[1722449195797,3.3409284,3318.3,3317.5,3.01425]
[1722449196001,3.3409284,3318.3,3317.7,3.01413]
[1722449196308,3.3409684,3318.3,3317.8,0.03562066]
[1722449196512,0.3273384,3318.3,3317.8,3.04963066]
[1722449196801,0.3273384,3318.3,3318.0,3.01381]
[1722449197178,0.3273384,3318.3,3318.1,0.09575067]
[1722449197673,0.3273384,3318.3,3318.2,3.01368]
[1722449197857,0.3273384,3318.3,3318.2,0.03543686]
[1722449198054,0.3273384,3318.3,3318.2,3.01368]
[1722449198300,0.3273384,3318.3,3318.2,6.06279686]
[1722449198598,0.3273384,3318.3,3318.2,7.21907655]
[1722449198796,0.3273384,3318.3,3318.2,13.23275655]
[1722449199508,0.3273384,3318.3,3318.2,48.23275655]
[1722449199801,0.3273384,3318.3,3318.2,45.21907655]
[1722449199988,0.3273384,3318.3,3318.2,48.23275655]
[1722449200189,0.3273384,3318.3,3318.2,45.21907655]
[1722449200800,0.3273384,3318.3,3318.2,48.23275655]
[1722449201002,0.3273384,3318.3,3318.2,45.21907655]
[1722449201392,0.3273384,3318.3,3318.2,48.23275655]
[1722449202429,0.3273384,3318.3,3318.2,51.24643655]
[1722449202799,0.3273384,3318.3,3318.2,48.23275655]
[1722449202983,0.3273384,3318.3,3318.2,48.56627229]
[1722449203417,0.3273384,3318.3,3318.2,45.55259229]
[1722449204183,0.3273384,3318.3,3318.2,41.9326326]
[1722449204391,0.3273384,3318.3,3318.2,41.04911686]
[1722449204712,0.3273384,3318.3,3318.2,38.03543686]
[1722449205034,0.3273384,3318.3,3318.2,41.04911686]
[1722449205244,0.3273384,3318.3,3318.2,44.06279686]
[1722449205443,0.3273384,3318.3,3318.2,47.04800515]
[1722449206011,0.3273384,3318.3,3318.2,47.59800515]
[1722449206335,0.3273384,3318.3,3318.2,50.61168515]
[1722449206539,0.3273384,3318.3,3318.2,47.59800515]
[1722449206693,0.3273384,3318.3,3318.2,50.61168515]
[1722449207008,0.3273384,3318.3,3318.2,47.59800515]
[1722449207406,0.3273384,3318.3,3318.2,44.58432515]
[1722449207610,0.3273384,3318.3,3318.2,47.59800515]
[1722449208294,0.3273384,3318.3,3318.2,44.58432515]
[1722449208491,0.3273384,3318.3,3318.2,41.02064515]
[1722449209033,0.3273384,3318.3,3318.2,47.04800515]
[1722449209194,0.3273384,3318.3,3318.2,50.06168515]
[1722449209392,0.3273384,3318.3,3318.2,47.59800515]
[1722449209796,0.3273384,3318.3,3318.2,44.58432515]
[1722449210105,0.3273384,3318.3,3318.2,47.59800515]
[1722449210413,0.3273384,3318.3,3318.2,44.58432515]
[1722449210611,0.3273384,3318.3,3318.2,41.02064515]
[1722449210806,0.3273384,3318.3,3318.2,0.03543686]
[1722449211005,0.3273384,3318.3,3317.8,3.31893307]
[1722449211207,0.3273384,3318.3,3317.9,38.04884816]
[1722449211408,0.3273384,3318.3,3318.0,3.01385]
[1722449211638,0.3273384,3318.3,3318.2,3.01368]
[1722449212009,0.3273384,3318.3,3318.2,0.03482032]
[1722449212222,0.3273384,3318.3,3318.2,35.03482032]
[1722449212840,0.3273384,3318.3,3318.2,0.03482032]
[1722449213058,0.3273384,3318.3,3317.9,3.01394]
[1722449213211,0.3273384,3318.3,3318.2,0.03482032]
[1722449213406,0.3273384,3318.3,3318.0,35.33189031]
[1722449213836,0.3273384,3318.3,3318.1,0.03486626]
[1722449214161,0.3273384,3318.3,3318.2,3.01368]
[1722449214522,0.3273384,3318.3,3318.2,41.06218032]
[1722449214732,0.3273384,3318.3,3318.2,44.04738861]
[1722449214942,0.3273384,3318.3,3318.2,47.59738861]
[1722449215479,0.3273384,3318.3,3318.2,50.61106861]
[1722449215644,0.3273384,3318.3,3318.2,47.59738861]
[1722449216374,0.3273384,3318.3,3318.2,50.61106861]
[1722449217573,0.3273384,3318.3,3318.2,47.59738861]
[1722449219217,0.3273384,3318.3,3318.2,44.58370861]
[1722449219478,0.3273384,3318.3,3318.2,35.03482032]
[1722449219777,0.3273384,3318.3,3318.2,0.03482032]
[1722449220167,0.3273384,3318.3,3318.0,3.34568031]
[1722449220168,0.3273384,3318.3,3318.0,0.33189031]
[1722449220487,0.3273384,3318.3,3318.1,0.03496171]
[1722449220791,0.3273384,3318.3,3318.0,3.0]
[1722449221097,0.3273384,3318.3,3318.1,0.03496171]
[1722449221458,3.01368,3318.2,3317.8,35.0]
[1722449221669,0.3273384,3318.3,3317.8,35.0]
[1722449222072,0.3273384,3318.3,3317.8,36.47472258]
[1722449222481,0.3273384,3318.3,3317.9,3.01394]
[1722449222794,0.3273384,3318.3,3318.0,3.01381]
[1722449222996,0.3273384,3318.3,3318.2,3.01368]
[1722449223408,0.3273384,3318.3,3318.2,6.06115522]
[1722449223564,0.3273384,3318.3,3318.2,6.66727074]
[1722449224105,0.3273384,3318.3,3318.2,0.63991074]
[1722449224264,0.3273384,3318.3,3318.2,0.03379522]
[1722449225088,0.3273384,3318.3,3318.2,3.04747522]
[1722449225250,0.3273384,3318.3,3318.2,6.06115522]
[1722449225454,0.3273384,3318.3,3318.2,6.61115522]
[1722449225680,0.3273384,3318.3,3318.2,7.57364374]
[1722449225897,0.3273384,3318.3,3318.2,42.57364374]
[1722449227002,0.3273384,3318.3,3318.2,36.54628374]
[1722449227150,0.3273384,3318.3,3318.2,35.99628374]
[1722449227786,3.3409284,3318.3,3318.2,0.03379522]
[1722449227992,6.3545184,3318.3,3318.2,0.03379522]
[1722449228275,6.3545184,3318.3,3317.3,15.39444]
[1722449228276,1.58947981,3318.3,3317.3,35.0]
[1722449228467,3.014,3317.9,3317.2,3.0145]
[1722449228664,4.27594141,3318.1,3317.2,3.0145]
[1722449228902,3.01419,3317.7,3317.3,35.0]
[1722449229210,3.01399,3317.9,3317.1,7.29]
[1722449229211,1.26214141,3317.8,3317.1,7.29]
[1722449229350,3.01459,3317.2,3317.1,7.29]
[1722449229692,3.25462,3317.2,3316.7,35.0]
[1722449229899,0.24,3317.2,3316.7,35.0]
[1722449230051,3.25465,3317.2,3316.7,35.0]
[1722449230257,0.24,3317.2,3316.7,35.0]
[1722449230471,0.24,3317.2,3316.7,41.00023829]
[1722449230676,0.24,3317.2,3316.9,3.01486]
[1722449230871,0.24,3317.2,3316.7,41.00024829]
[1722449231108,0.24,3317.2,3316.7,37.98520829]
[1722449231271,3.01459,3317.2,3316.7,35.0]
[1722449231621,3.01477,3317.0,3316.7,35.0]
[1722449231912,1.26214141,3316.9,3316.7,35.0]
[1722449232097,1.26214141,3317.2,3316.9,3.01486]
[1722449232301,1.81906284,3317.3,3316.9,3.01486]
[1722449232302,1.50214141,3317.3,3316.9,3.01486]
[1722449232597,1.50214141,3317.3,3316.9,35.0]
[1722449232913,0.24,3317.3,3317.2,3.01459]
[1722449233114,0.24,3317.3,3317.0,3.07504873]
[1722449233316,0.24,3317.3,3317.0,3.01476]
[1722449233515,0.24,3317.3,3316.9,37.98520829]
[1722449233676,0.24,3317.3,3317.0,3.0]
[1722449233874,0.24,3317.3,3317.2,3.01459]
[1722449234279,0.24,3317.3,3317.2,6.08946551]
[1722449234475,0.24,3317.3,3317.2,9.10405551]
[1722449234802,0.24,3317.3,3317.2,6.01459]
[1722449235117,0.24,3317.3,3316.9,41.00000829]
[1722449235278,0.24,3317.3,3317.0,3.0]
[1722449235478,1.50214141,3317.3,3317.0,6.01476]
[1722449235807,0.24,3317.3,3317.2,6.02918]
[1722449235977,0.24,3317.3,3317.2,3.01459]
[1722449236182,1.50214141,3317.5,3317.3,3.01446]
[1722449236519,0.24,3317.5,3317.4,3.0144]
[1722449236833,1.50243611,3317.5,3317.3,3.64951381]
[1722449236977,1.50243611,3317.5,3317.3,0.33362781]
[1722449237183,1.26243611,3317.4,3317.3,0.33362781]
[1722449237605,1.57906284,3317.4,3317.3,0.33362781]
[1722449237831,3.0144,3317.4,3317.3,0.33362781]
[1722449237998,0.24,3317.5,3317.3,0.33362781]
[1722449238210,0.24,3317.5,3317.3,0.36831888]
[1722449238428,1.57774787,3317.4,3317.3,0.36831888]
[1722449238732,0.24,3317.5,3317.3,0.36831888]
[1722449238900,1.81776989,3317.5,3317.3,0.36831888]
[1722449239103,1.57776989,3317.4,3317.3,0.36831888]
[1722449239598,0.24,3317.5,3317.4,3.0144]
[1722449239599,1.50186823,3317.5,3317.4,3.0144]
[1722449239805,1.50186823,3317.5,3317.3,0.70661777]
[1722449240134,0.24,3317.5,3317.4,0.0346451]
[1722449240828,7.84595848,3317.5,3317.4,0.0346451]
[1722449241028,6.26862,3317.5,3317.4,0.0346451]
[1722449241330,6.0288,3317.4,3317.3,0.33362781]
[1722449241494,9.620062,3317.4,3317.3,7.81e-06]
[1722449241843,3.01547,3316.3,3315.6,10.30601]
[1722449242018,1.26214716,3316.0,3315.7,35.0]
[1722449242201,1.50213935,3316.2,3315.7,35.0]
[1722449242402,4.51763935,3316.2,3315.8,0.03438091]
[1722449242611,1.26214716,3316.1,3315.8,0.03438091]
[1722449242803,1.26214716,3316.1,3315.6,7.29]
[1722449243117,1.26127899,3315.9,3315.6,7.29]
[1722449243292,3.01577,3315.9,3315.7,0.03361695]
[1722449243492,1.26127899,3316.0,3315.7,0.03361695]
[1722449243831,3.01586,3315.8,3315.7,0.03361695]
[1722449244443,3.25585219,3315.8,3315.7,0.03361695]
[1722449244661,3.25585219,3315.8,3314.8,10.30676]
[1722449244662,7.02490338,3315.8,3314.8,10.30676]
[1722449244950,7.02490338,3315.8,3314.9,35.0]
[1722449244951,3.01631,3315.3,3314.9,35.0]
[1722449245152,3.01631,3315.3,3314.9,35.03332286]
[1722449245153,4.27663975,3315.3,3314.9,35.03332286]
[1722449245445,1.57541219,3315.4,3314.9,35.03332286]
[1722449245446,3.01627,3315.4,3314.9,35.03332286]
[1722449245660,3.01604,3315.6,3314.9,3.04994286]
[1722449245810,3.01604,3315.6,3314.9,0.03332286]
[1722449246010,3.84458231,3315.6,3314.9,3.04998286]
[1722449246208,0.82854231,3315.6,3314.9,3.04998286]
[1722449246412,0.23999219,3315.7,3315.5,3.01606]
[1722449246651,0.23999219,3315.7,3315.6,0.03300068]
[1722449247148,0.23999219,3315.7,3314.7,13.30684]
[1722449247355,0.23999219,3315.6,3314.9,3.01662]
[1722449247647,0.23999219,3315.6,3314.7,10.30686]
[1722449247852,3.01613,3315.5,3314.8,3.01676]
[1722449248050,0.56558641,3315.6,3314.9,3.01666]
[1722449248354,0.56558641,3315.6,3315.4,3.01616]
[1722449248355,0.23999219,3315.6,3315.4,3.01616]
[1722449248651,0.23999219,3315.5,3315.4,3.01616]
[1722449248864,0.23999219,3315.5,3315.4,6.03238]
[1722449249057,0.23999219,3315.5,3315.4,6.69593007]
[1722449249439,0.23999219,3315.5,3315.4,6.635618]
[1722449249659,0.23999219,3315.5,3315.4,10.185618]
[1722449250664,0.23999219,3315.5,3315.4,13.201838]
[1722449251868,0.23999219,3315.5,3315.4,16.218058]
[1722449252525,10.48432,3317.5,3315.4,16.218058]
[1722449252526,3.01416,3317.7,3316.7,3.01496]
[1722449252840,1.56912273,3318.0,3316.3,3.01536]
[1722449252841,0.301416,3317.6,3316.5,7.29]
[1722449253024,3.01514,3316.6,3315.8,7.29]
[1722449253231,3.01506,3316.7,3315.9,0.03286265]
[1722449253464,3.0153,3316.5,3315.9,0.03286265]
[1722449253634,3.01538,3316.4,3315.9,0.03286265]
[1722449253837,3.01555,3316.2,3315.9,0.03286265]
[1722449254132,3.01568,3316.0,3315.9,0.03286265]
[1722449254454,3.01514,3316.6,3315.9,0.03286265]
[1722449254660,3.01523,3316.5,3315.9,0.03286265]
[1722449254856,3.01514,3316.6,3315.9,0.03286265]